fUST/lending_fUST_20250424
["ID","MTS","AMOUNT","RATE_DAILY","PERIOD"]
[358836971,1745488242011,-500.0,0.00019452,2]
[358836972,1745488242021,-500.0,0.00019452,2]
[358836973,1745488242030,-500.0,0.00019452,2]
[358836974,1745488242040,-500.0,0.00019452,2]
[358836975,1745488242049,-1336.07,0.00019452,2]
[358836976,1745488242058,-500.0,0.00019452,2]
[358836977,1745488242067,-500.0,0.00019452,2]
[358836978,1745488242076,-500.0,0.00019452,2]
[358836979,1745488242085,-620.15,0.00019452,2]
[358836980,1745488242095,-500.0,0.00019452,2]
[358836981,1745488242104,-500.0,0.00019452,2]
[358836982,1745488242113,-512.23534245,0.00019452,2]
[358836983,1745488242121,-514.644375,0.00019452,2]
[358836984,1745488242130,-500.0,0.00019452,2]
[358836985,1745488242139,-514.644375,0.00019452,2]
[358836986,1745488242148,-514.644375,0.00019452,2]
[358836987,1745488242156,-500.0,0.00019452,2]
[358836988,1745488242165,-514.644375,0.00019452,2]
[358836989,1745488242174,-514.644375,0.00019452,2]
[358836990,1745488242182,-514.644375,0.00019452,2]
[358836991,1745488242191,-168.36805303,0.00019452,2]
[358836992,1745488242199,-305.69617702,0.00019452,2]
[358836993,1745488242208,-500.0,0.00019452,2]
[358836994,1745488242216,-643.53,0.00019452,2]
[358836995,1745488242225,-500.0,0.00019452,2]
[358836996,1745488242233,-500.0,0.00019452,2]
[358836997,1745488242243,-500.0,0.00019452,2]
[358836998,1745488242252,-500.0,0.00019452,2]
[358836999,1745488242263,-500.0,0.00019452,2]
[358837000,1745488242273,-500.0,0.00019452,2]
[358837001,1745488242284,-500.0,0.00019452,2]
[358837002,1745488242293,-500.0,0.00019452,2]
[358837003,1745488242303,-500.0,0.00019452,2]
[358837004,1745488242312,-500.0,0.00019452,2]
[358837005,1745488242322,-1124.72,0.00019452,2]
[358837006,1745488242332,-893.46,0.00019452,2]
[358837007,1745488242345,-502.64,0.00019452,2]
[358837008,1745488242354,-2454.09,0.00019452,2]
[358837009,1745488242364,-500.0,0.00019452,2]
[358837010,1745488242374,-500.0,0.00019452,2]
[358837011,1745488242383,-769.35,0.00019452,2]
[358837012,1745488242392,-500.0,0.00019452,2]
[358837013,1745488242401,-568.09,0.00019452,2]
[358837014,1745488242411,-630.17,0.00019452,2]
[358837015,1745488242423,-500.0,0.00019452,2]
[358837016,1745488242432,-500.0,0.00019452,2]
[358837017,1745488242441,-668.8,0.00019452,2]
[358837018,1745488242450,-1000.0,0.00019452,2]
[358837019,1745488242460,-500.0,0.00019452,2]
[358837020,1745488242469,-500.0,0.00019452,2]
[358837021,1745488242478,-500.0,0.00019452,2]
[358837022,1745488242487,-500.0,0.00019452,2]
[358837023,1745488242496,-500.0,0.00019452,2]
[358837024,1745488242506,-1049.47,0.00019452,2]
[358837025,1745488242515,-500.0,0.00019452,2]
[358837026,1745488242526,-500.0,0.00019452,2]
[358837027,1745488242535,-500.0,0.00019452,2]
[358837028,1745488242545,-500.0,0.00019452,2]
[358837029,1745488242554,-713.53,0.00019452,2]
[358837030,1745488242563,-500.0,0.00019452,2]
[358837031,1745488242572,-497.53616167,0.00019452,2]
[358837032,1745488242581,-500.0,0.00019452,2]
[358837033,1745488242590,-847.46,0.00019452,2]
[358837034,1745488242599,-1564.17,0.00019452,2]
[358837035,1745488242608,-500.0,0.00019452,2]
[358837036,1745488242617,-629.77,0.00019452,2]
[358837037,1745488242626,-500.0,0.00019452,2]
[358837038,1745488242635,-1101.89,0.00019452,2]
[358837039,1745488242644,-500.0,0.00019452,2]
[358837040,1745488242654,-500.0,0.00019452,2]
[358837041,1745488242663,-1561.41,0.00019452,2]
[358837042,1745488242671,-500.0,0.00019452,2]
[358837043,1745488242681,-735.4,0.00019452,2]
[358837044,1745488242690,-500.0,0.00019452,2]
[358837045,1745488242699,-500.0,0.00019452,2]
[358837046,1745488242708,-500.0,0.00019452,2]
[358837047,1745488242717,-500.0,0.00019452,2]
[358837048,1745488242726,-685.68,0.00019452,2]
[358837049,1745488242736,-500.0,0.00019452,2]
[358837050,1745488242745,-500.0,0.00019452,2]
[358837051,1745488242754,-500.0,0.00019452,2]
[358837052,1745488242763,-500.0,0.00019452,2]
[358837053,1745488242777,-932.58,0.00019452,2]
[358837054,1745488242786,-556.46,0.00019452,2]
[358837055,1745488242796,-500.0,0.00019452,2]
[358837056,1745488242806,-500.0,0.00019452,2]
[358837057,1745488242815,-500.0,0.00019452,2]
[358837058,1745488242824,-500.0,0.00019452,2]
[358837059,1745488242834,-500.0,0.00019452,2]
[358837060,1745488242843,-638.2,0.00019452,2]
[358837066,1745488242852,-590.29,0.00019452,2]
[358837067,1745488242974,-527.8,0.00019452,2]
[358837068,1745488242985,-817.92,0.00019452,2]
[358837069,1745488242994,-542.82929749,0.00019452,2]
[358837070,1745488243003,-955.06,0.00019452,2]
[358837071,1745488243013,-598.21,0.00019452,2]
[358837072,1745488243024,-500.0,0.00019452,2]
[358837073,1745488243034,-500.0,0.00019452,2]
[358837074,1745488243043,-500.0,0.00019452,2]
[358837075,1745488243052,-729.49,0.00019452,2]
[358837076,1745488243061,-500.0,0.00019452,2]
[358837077,1745488243071,-934.32,0.00019452,2]
[358837078,1745488243080,-500.0,0.00019452,2]
[358837079,1745488243089,-731.78,0.00019452,2]
[358837080,1745488243099,-500.0,0.00019452,2]
[358837081,1745488243109,-2212.65,0.00019452,2]
[358837082,1745488243118,-500.0,0.00019452,2]
[358837083,1745488243129,-486.52141878,0.00019452,2]
[358837084,1745488243138,-500.0,0.00019452,2]
[358837085,1745488243148,-500.0,0.00019452,2]
[358837086,1745488243157,-500.0,0.00019452,2]
[358837087,1745488243167,-500.0,0.00019452,2]
[358837088,1745488243177,-500.0,0.00019452,2]
[358837089,1745488243186,-502.82,0.00019452,2]
[358837090,1745488243195,-151.0,0.00019452,2]
[358837091,1745488243205,-151.0,0.00019452,2]
[358837092,1745488243214,-500.0,0.00019452,2]
[358837093,1745488243224,-151.0,0.00019452,2]
[358837094,1745488243233,-151.0,0.00019452,2]
[358837095,1745488243242,-500.0,0.00019452,2]
[358837096,1745488243251,-500.0,0.00019452,2]
[358837097,1745488243260,-647.24,0.00019452,2]
[358837098,1745488243271,-1022.45,0.00019452,2]
[358837099,1745488243281,-510.34,0.00019452,2]
[358837100,1745488243290,-500.0,0.00019452,2]
[358837101,1745488243300,-500.0,0.00019452,2]
[358837102,1745488243310,-500.0,0.00019452,2]
[358837103,1745488243320,-500.0,0.00019452,2]
[358837104,1745488243330,-500.0,0.00019452,2]
[358837105,1745488243343,-555.29546178,0.00019452,2]
[358837106,1745488243352,-500.0,0.00019452,2]
[358837107,1745488243362,-500.0,0.00019452,2]
[358837108,1745488243373,-500.0,0.00019452,2]
[358837109,1745488243383,-393.82572339,0.00019452,2]
[358837110,1745488243392,-500.0,0.00019452,2]
[358837111,1745488243402,-560.89743053,0.00019452,2]
[358837112,1745488243412,-522.33021807,0.00019452,2]
[358837113,1745488243422,-500.0,0.00019452,2]
[358837114,1745488243431,-500.0,0.00019452,2]
[358837115,1745488243441,-891.93,0.00019452,2]
[358837116,1745488243450,-500.0,0.00019452,2]
[358837117,1745488243460,-1630.69,0.00019452,2]
[358837118,1745488243470,-500.0,0.00019452,2]
[358837119,1745488243480,-500.0,0.00019452,2]
[358837120,1745488243490,-1238.92,0.00019452,2]
[358837121,1745488243501,-500.0,0.00019452,2]
[358837123,1745488243510,-500.0,0.00019452,2]
[358837125,1745488243521,-2112.91,0.00019452,2]
[358837127,1745488243530,-500.0,0.00019452,2]
[358837129,1745488243539,-500.0,0.00019452,2]
[358837131,1745488243548,-500.0,0.00019452,2]
[358837133,1745488243558,-500.0,0.00019452,2]
[358837135,1745488243567,-500.0,0.00019452,2]
[358837137,1745488243577,-500.0,0.00019452,2]
[358837138,1745488243587,-841.84,0.00019452,2]
[358837139,1745488243596,-151.0,0.00019452,2]
[358837140,1745488243606,-557.8,0.00019452,2]
[358837141,1745488243616,-151.0,0.00019452,2]
[358837142,1745488243626,-151.0,0.00019452,2]
[358837143,1745488243635,-151.0,0.00019452,2]
[358837144,1745488243644,-500.0,0.00019452,2]
[358837145,1745488243654,-500.0,0.00019452,2]
[358837146,1745488243663,-941.18,0.00019452,2]
[358837147,1745488243673,-1454.89,0.00019452,2]
[358837148,1745488243682,-500.0,0.00019452,2]
[358837149,1745488243692,-500.0,0.00019452,2]
[358837150,1745488243702,-1021.19,0.00019452,2]
[358837151,1745488243712,-567.43,0.00019452,2]
[358837152,1745488243721,-507.67011091,0.00019452,2]
[358837153,1745488243732,-500.0,0.00019452,2]
[358837154,1745488243741,-1671.63,0.00019452,2]
[358837155,1745488243751,-599.2,0.00019452,2]
[358837156,1745488243760,-500.0,0.00019452,2]
[358837157,1745488243771,-797.67,0.00019452,2]
[358837158,1745488243781,-500.0,0.00019452,2]
[358837159,1745488243791,-500.0,0.00019452,2]
[358837160,1745488243801,-721.1,0.00019452,2]
[358837161,1745488243811,-4810.29,0.00019452,2]
[358837162,1745488243820,-500.0,0.00019452,2]
[358837163,1745488243829,-3742.84,0.00019452,2]
[358837164,1745488243839,-500.0,0.00019452,2]
[358837165,1745488243849,-500.0,0.00019452,2]
[358837166,1745488243858,-1449.38,0.00019452,2]
[358837167,1745488243868,-752.79,0.00019452,2]
[358837168,1745488243878,-500.0,0.00019452,2]
[358837169,1745488243888,-1068.32,0.00019452,2]
[358837170,1745488243898,-3419.55,0.00019452,2]
[358837171,1745488243907,-518.99,0.00019452,2]
[358837172,1745488243918,-500.0,0.00019452,2]
[358837173,1745488243927,-1035.89,0.00019452,2]
[358837174,1745488243936,-500.0,0.00019452,2]
[358837175,1745488243946,-500.0,0.00019452,2]
[358837176,1745488243956,-500.0,0.00019452,2]
[358837177,1745488243966,-500.0,0.00019452,2]
[358837178,1745488243975,-500.0,0.00019452,2]
[358837179,1745488243985,-500.0,0.00019452,2]
[358837180,1745488243995,-500.0,0.00019452,2]
[358837181,1745488244004,-500.0,0.00019452,2]
[358837182,1745488244013,-500.0,0.00019452,2]
[358837183,1745488244025,-500.0,0.00019452,2]
[358837184,1745488244034,-1226.42,0.00019452,2]
[358837185,1745488244044,-500.0,0.00019452,2]
[358837186,1745488244055,-500.0,0.00019452,2]
[358837187,1745488244065,-1918.93,0.00019452,2]
[358837188,1745488244074,-500.0,0.00019452,2]
[358837189,1745488244084,-151.0,0.00019452,2]
[358837190,1745488244094,-151.0,0.00019452,2]
[358837191,1745488244103,-151.0,0.00019452,2]
[358837192,1745488244113,-2673.45,0.00019452,2]
[358837193,1745488244123,-500.0,0.00019452,2]
[358837194,1745488244133,-193.635612,0.00019452,2]
[358837195,1745488244142,-500.0,0.00019452,2]
[358837196,1745488244153,-157.21524811,0.00019452,2]
[358837197,1745488244162,-977.95,0.00019452,2]
[358837198,1745488244172,-507.73,0.00019452,2]
[358837199,1745488244182,-500.0,0.00019452,2]
[358837200,1745488244191,-500.0,0.00019452,2]
[358837201,1745488244201,-500.0,0.00019452,2]
[358837202,1745488244211,-871.35,0.00019452,2]
[358837203,1745488244220,-500.0,0.00019452,2]
[358837204,1745488244230,-588.56449539,0.00019452,2]
[358837205,1745488244240,-1315.76,0.00019452,2]
[358837206,1745488244250,-500.0,0.00019452,2]
[358837207,1745488244260,-500.0,0.00019452,2]
[358837208,1745488244272,-500.0,0.00019452,2]
[358837209,1745488244281,-710.42,0.00019452,2]
[358837210,1745488244290,-500.0,0.00019452,2]
[358837211,1745488244300,-500.0,0.00019452,2]
[358837212,1745488244310,-500.0,0.00019452,2]
[358837213,1745488244319,-500.0,0.00019452,2]
[358837214,1745488244329,-500.0,0.00019452,2]
[358837215,1745488244339,-3870.04,0.00019452,2]
[358837216,1745488244350,-500.0,0.00019452,2]
[358837217,1745488244359,-500.0,0.00019452,2]
[358837218,1745488244370,-2382.8,0.00019452,2]
[358837219,1745488244379,-1298.85,0.00019452,2]
[358837220,1745488244388,-500.0,0.00019452,2]
[358837221,1745488244398,-500.0,0.00019452,2]
[358837222,1745488244409,-4794.9,0.00019452,2]
[358837223,1745488244419,-500.0,0.00019452,2]
[358837224,1745488244429,-500.0,0.00019452,2]
[358837225,1745488244438,-4502.71,0.00019452,2]
[358837226,1745488244448,-500.0,0.00019452,2]
[358837227,1745488244457,-552.48,0.00019452,2]
[358837228,1745488244467,-503.84617787,0.00019452,2]
[358837229,1745488244476,-4495.81,0.00019452,2]
[358837230,1745488244485,-759.39,0.00019452,2]
[358837231,1745488244494,-753.44,0.00019452,2]
[358837232,1745488244504,-500.0,0.00019452,2]
[358837233,1745488244515,-504.48390921,0.00019452,2]
[358837234,1745488244526,-1903.93,0.00019452,2]
[358837235,1745488244535,-500.0,0.00019452,2]
[358837236,1745488244544,-733.32,0.00019452,2]
[358837237,1745488244554,-500.0,0.00019452,2]
[358837238,1745488244563,-355.56288096,0.00019452,2]
[358837239,1745488244572,-500.0,0.00019452,2]
[358837240,1745488244581,-894.56,0.00019452,2]
[358837241,1745488244591,-7116.79,0.00019452,2]
[358837242,1745488244600,-500.0,0.00019452,2]
[358837243,1745488244609,-6000.49,0.00019452,2]
[358837244,1745488244618,-500.0,0.00019452,2]
[358837245,1745488244628,-821.62,0.00019452,2]
[358837246,1745488244637,-500.0,0.00019452,2]
[358837247,1745488244646,-720.46,0.00019452,2]
[358837248,1745488244655,-500.0,0.00019452,2]
[358837249,1745488244664,-500.0,0.00019452,2]
[358837250,1745488244673,-500.0,0.00019452,2]
[358837251,1745488244682,-500.0,0.00019452,2]
[358837252,1745488244693,-3096.95,0.00019452,2]
[358837253,1745488244703,-866.69,0.00019452,2]
[358837254,1745488244712,-500.0,0.00019452,2]
[358837255,1745488244721,-502.26858678,0.00019452,2]
[358837256,1745488244730,-500.0,0.00019452,2]
[358837257,1745488244739,-5455.01,0.00019452,2]
[358837258,1745488244748,-500.0,0.00019452,2]
[358837259,1745488244757,-500.0,0.00019452,2]
[358837260,1745488244766,-1155.18,0.00019452,2]
[358837261,1745488244776,-500.0,0.00019452,2]
[358837262,1745488244785,-500.0,0.00019452,2]
[358837263,1745488244794,-500.0,0.00019452,2]
[358837264,1745488244803,-514.61586771,0.00019452,2]
[358837265,1745488244813,-500.0,0.00019452,2]
[358837266,1745488244823,-846.86,0.00019452,2]
[358837267,1745488244832,-500.0,0.00019452,2]
[358837268,1745488244842,-500.0,0.00019452,2]
[358837269,1745488244852,-500.0,0.00019452,2]
[358837270,1745488244861,-500.0,0.00019452,2]
[358837271,1745488244871,-500.0,0.00019452,2]
[358837272,1745488244882,-601.27,0.00019452,2]
[358837273,1745488244909,-711.05,0.00019452,2]
[358837274,1745488244918,-500.0,0.00019452,2]
[358837275,1745488244928,-500.0,0.00019452,2]
[358837276,1745488245039,-154.88,0.00019452,2]
[358837277,1745488245048,-500.0,0.00019473,2]
[358837278,1745488245058,-500.0,0.00019507,2]
[358837279,1745488245067,-500.0,0.00019507,2]
[358837280,1745488245076,-500.0,0.00019507,2]
[358837281,1745488245085,-501.79761965,0.00019507,2]
[358837282,1745488245094,-151.0,0.00019507,2]
[358837283,1745488245104,-708.2597806,0.00019528,2]
[358837284,1745488245113,-500.0,0.00019562,2]
[358837285,1745488245122,-309.4201225,0.00019562,2]
[358837286,1745488245132,-191.78792528,0.00019562,2]
[358837287,1745488245141,-152.0,0.00019589,2]
[358837288,1745488245150,-152.0,0.00019589,2]
[358837289,1745488245160,-152.0,0.00019589,2]
[358837290,1745488245169,-152.0,0.00019589,2]
[358837291,1745488245179,-152.0,0.00019589,2]
[358837292,1745488245188,-152.0,0.00019589,2]
[358837293,1745488245198,-152.0,0.00019589,2]
[358837294,1745488245207,-152.0,0.00019589,2]
[358837295,1745488245217,-152.0,0.00019589,2]
[358837296,1745488245226,-152.0,0.00019589,2]
[358837297,1745488245236,-152.0,0.00019589,2]
[358837298,1745488245245,-152.0,0.00019589,2]
[358837299,1745488245255,-152.0,0.00019589,2]
[358837300,1745488245264,-152.0,0.00019589,2]
[358837301,1745488245275,-267.46094231,0.00019589,2]
[358837302,1745488245285,-223.00537646,0.00019616,2]
[358837303,1745488245295,-514.644375,0.00019699,2]
[358837304,1745488245304,-514.644375,0.00019699,2]
[358837305,1745488245314,-212018.74524318,0.000197,3]
[358837306,1745488245323,-151.0,0.000197,2]
[358837307,1745488245333,-151.0,0.000197,2]
[358837308,1745488245346,-151.0,0.000197,2]
[358837309,1745488245355,-8100.0,0.000197,2]
[358837310,1745488245365,-514.644375,0.000197,2]
[358837311,1745488245374,-514.644375,0.000197,2]
[358837312,1745488245384,-514.644375,0.000197,2]
[358837313,1745488245394,-514.644375,0.000197,2]
[358837314,1745488245403,-151.0,0.000197,2]
[358837315,1745488245413,-296.93125,0.000197,2]
[358837316,1745488245423,-151.0,0.000197,2]
[358837317,1745488245433,-840.0731918,0.000197,3]
[358837318,1745488245443,-151.0,0.00019726,2]
[358837319,1745488245452,-151.0,0.00019726,2]
[358837320,1745488245461,-202.124117,0.00019726,2]
[358837321,1745488245471,-151.0,0.00019726,2]
[358837322,1745488245480,-151.0,0.00019726,2]
[358837323,1745488245489,-151.0,0.00019726,2]
[358837324,1745488245498,-151.0,0.00019726,2]
[358837325,1745488245507,-151.0,0.00019726,2]
[358837326,1745488245516,-151.0,0.00019726,2]
[358837327,1745488245526,-500.0,0.00019726,2]
[358837328,1745488245535,-500.0,0.00019726,2]
[358837329,1745488245545,-500.0,0.00019726,2]
[358837330,1745488245554,-500.0,0.00019726,2]
[358837331,1745488245563,-500.0,0.00019726,2]
[358837332,1745488245572,-531.61916282,0.00019726,2]
[358837333,1745488245582,-500.0,0.00019726,2]
[358837334,1745488245591,-500.0,0.00019726,2]
[358837335,1745488245602,-500.0,0.00019726,2]
[358837336,1745488245611,-500.0,0.00019726,2]
[358837337,1745488245620,-500.0,0.00019726,2]
[358837338,1745488245630,-500.0,0.00019726,2]
[358837339,1745488245640,-500.0,0.00019726,2]
[358837340,1745488245649,-611.62506163,0.00019726,2]
[358837341,1745488245658,-500.0,0.00019726,2]
[358837342,1745488245667,-506.8,0.00019726,2]
[358837343,1745488245676,-500.0,0.00019726,2]
[358837344,1745488245685,-500.0,0.00019726,2]
[358837345,1745488245695,-500.0,0.00019726,2]
[358837346,1745488245704,-500.0,0.00019726,2]
[358837347,1745488245713,-500.0,0.00019726,2]
[358837348,1745488245723,-500.0,0.00019726,2]
[358837349,1745488245732,-500.0,0.00019726,2]
[358837350,1745488245741,-762.07,0.00019726,2]
[358837351,1745488245751,-607.75,0.00019726,2]
[358837352,1745488245760,-500.0,0.00019726,2]
[358837353,1745488245770,-528.38,0.00019726,2]
[358837354,1745488245779,-500.0,0.00019726,2]
[358837355,1745488245789,-8100.0,0.00019726,2]
[358837357,1745488245798,-8100.0,0.00019726,2]
[358837358,1745488245808,-8100.0,0.00019726,2]
[358837359,1745488245817,-8100.0,0.00019726,2]
[358837360,1745488245826,-500.0,0.00019726,2]
[358837361,1745488245836,-8100.0,0.00019726,2]
[358837362,1745488245845,-8100.0,0.00019726,2]
[358837363,1745488245855,-8100.0,0.00019726,2]
[358837364,1745488245864,-8100.0,0.00019726,2]
[358837365,1745488245873,-500.0,0.00019726,2]
[358837366,1745488245883,-500.0,0.00019726,2]
[358837367,1745488245893,-505.63924459,0.00019726,2]
[358837368,1745488245902,-500.0,0.00019726,2]
[358837369,1745488245912,-160.85259476,0.00019726,2]
[358837370,1745488245922,-500.0,0.00019726,2]
[358837371,1745488245932,-500.0,0.00019726,2]
[358837372,1745488245941,-500.0,0.00019726,2]
[358837373,1745488245951,-500.0,0.00019726,2]
[358837374,1745488245960,-500.0,0.00019726,2]
[358837375,1745488245969,-525.83542448,0.00019726,2]
[358837376,1745488245978,-500.0,0.00019726,2]
[358837377,1745488245988,-519.24354642,0.00019726,2]
[358837378,1745488245997,-295.11653181,0.00019726,2]
[358837379,1745488246006,-500.0,0.00019726,2]
[358837380,1745488246015,-1336.07,0.00019726,2]
[358837381,1745488246026,-500.0,0.00019726,2]
[358837382,1745488246036,-500.0,0.00019726,2]
[358837383,1745488246045,-500.0,0.00019726,2]
[358837384,1745488246054,-620.15,0.00019726,2]
[358837385,1745488246064,-500.0,0.00019726,2]
[358837386,1745488246073,-500.0,0.00019726,2]
[358837387,1745488246083,-500.0,0.00019726,2]
[358837388,1745488246092,-514.644375,0.00019726,2]
[358837389,1745488246102,-514.644375,0.00019726,2]
[358837390,1745488246111,-514.644375,0.00019726,2]
[358837391,1745488246120,-500.0,0.00019726,2]
[358837392,1745488246130,-514.644375,0.00019726,2]
[358837393,1745488246139,-514.644375,0.00019726,2]
[358837394,1745488246149,-514.6443792,0.00019726,2]
[358837395,1745488246159,-500.0,0.00019726,2]
[358837396,1745488246168,-643.53,0.00019726,2]
[358837397,1745488246178,-500.0,0.00019726,2]
[358837398,1745488246187,-500.0,0.00019726,2]
[358837399,1745488246196,-500.0,0.00019726,2]
[358837400,1745488246206,-637.49309326,0.00019726,2]
[358837401,1745488246216,-500.0,0.00019726,2]
[358837402,1745488246226,-198.77824129,0.00019726,2]
[358837403,1745488246235,-500.0,0.00019726,2]
[358837404,1745488246244,-500.0,0.00019726,2]
[358837405,1745488246254,-500.0,0.00019726,2]
[358837406,1745488246263,-1124.72,0.00019726,2]
[358837407,1745488246273,-893.46,0.00019726,2]
[358837408,1745488246283,-502.64,0.00019726,2]
[358837409,1745488246293,-1464.32706882,0.00019726,2]
[358837410,1745488246474,-5000.0,0.00018986,2]
[358837411,1745488246485,-500.0,0.00019178,2]
[358837412,1745488246494,-362.35,0.00019452,2]
[358837414,1745488246504,-989.76293118,0.00019726,2]
[358837415,1745488246518,-500.0,0.00019726,2]
[358837416,1745488246527,-500.0,0.00019726,2]
[358837417,1745488246537,-769.35,0.00019726,2]
[358837418,1745488246546,-99.53706893,0.00019726,2]
[358837419,1745488247310,-447.99236688,0.00019178,2]
[358837420,1745488247325,-52.00763312,0.00019178,2]
[358837421,1745488247336,-500.0,0.00019178,2]
[358837422,1745488247348,-500.0,0.00019178,2]
[358837423,1745488247357,-213.45715145,0.00019178,2]
[358837424,1745488247367,-491.46,0.00019452,2]
[358837425,1745488247376,-400.46293107,0.00019726,2]
[358837426,1745488247387,-568.09,0.00019726,2]
[358837427,1745488247396,-500.0,0.00019726,2]
[358837428,1745488247405,-630.17,0.00019726,2]
[358837429,1745488247415,-500.0,0.00019726,2]
[358837430,1745488247425,-668.8,0.00019726,2]
[358837431,1745488247435,-1022.22863644,0.00019726,2]
[358837432,1745488247444,-500.0,0.00019726,2]
[358837433,1745488247453,-500.0,0.00019726,2]
[358837434,1745488247463,-500.0,0.00019726,2]
[358837435,1745488247472,-580.29954031,0.00019726,2]
[358837436,1745488247481,-500.0,0.00019726,2]
[358837437,1745488247490,-1049.47,0.00019726,2]
[358837438,1745488247499,-323.55410761,0.00019726,2]
[358857380,1745488623066,-300.0,0.00016379,2]
[358857381,1745488635059,-782.57624643,0.00016216,2]
[358857382,1745488651225,-178.53845014,0.00016216,2]
[358857383,1745488652711,-152.0,0.00016216,2]
[358857384,1745488676003,-168.12811076,0.00016216,2]
[358857385,1745488682933,-229.49439323,0.00016216,2]
[358857386,1745488704551,-390.67135318,0.00016216,2]
[358857387,1745488712881,-227.621606,0.00016215,2]
[358857437,1745488726052,-163.04974718,0.00016215,2]
[358857438,1745488743062,-212.98349472,0.00016214,2]
[358857465,1745488803472,-287.01650528,0.00016214,2]
[358857474,1745488815603,-12.98349472,0.00016214,2]
[358857475,1745488815626,-144.24501977,0.00016214,2]
[358857480,1745488822524,-1139.72713922,0.00016052,2]
[358857481,1745488842594,-151.47685491,0.00016052,2]
[358857482,1745488856432,-471.53976766,0.00016051,2]
[358857483,1745488962805,-185.0,0.0001605,2]
[358857484,1745488962826,-34.39471768,0.0001605,2]
[358857485,1745488963437,-219.39471768,0.0001605,2]
[358857486,1745488994432,-195.98,0.00015952,2]
[358857487,1745489009959,-264.3595,0.00015792,2]
[358857488,1745489044106,-152.0,0.00015792,2]
[358857490,1745489106883,-165.41572321,0.00015792,2]
[358857493,1745489118131,-183.95512264,0.00015792,2]
[358857494,1745489163196,-204.57997174,0.00015792,2]
[358857495,1745489168024,-500.0,0.00015792,2]
[358857496,1745489170269,-595.48033093,0.00015792,2]
[358857497,1745489194485,1193179.37806888,0.0001,5]
[358857498,1745489196017,-185.429996,0.00015634,2]
[358857499,1745489207498,-444.34936167,0.00015634,2]
[358857500,1745489209098,-258.91936567,0.00015634,2]
[358857501,1745489220028,-152.0,0.00015634,2]
[358857504,1745489236120,-3959.30127666,0.00015634,2]
[358857505,1745489236149,-204.57997174,0.00015791,2]
[358857506,1745489236171,-1200.0,0.00016048,2]
[358857507,1745489236191,-300.0,0.00016048,2]
[358857508,1745489236211,-300.0,0.00016049,2]
[358857509,1745489236231,-300.0,0.00016049,2]
[358857510,1745489236253,-391.86282173,0.00016049,2]
[358857511,1745489236274,-500.0,0.00016049,2]
[358857512,1745489236294,-538.41429113,0.00016049,2]
[358857513,1745489236314,-500.0,0.000161,2]
[358857514,1745489236337,-500.0,0.000161,2]
[358857515,1745489236358,-500.0,0.000161,2]
[358857516,1745489236378,-500.0,0.000161,2]
[358857517,1745489236398,-500.0,0.000161,2]
[358857518,1745489236418,-500.0,0.000161,2]